[Event "41st Jacques-Lemans-Open 2022"]
[Site "St. Veit/Glan"]
[Date "2022.07.15"]
[Round "8.12"]
[White "Caruso, Augusto"]
[Black "Bethke, Robert"]
[Result "1-0"]
[ECO "C55"]
[WhiteElo "2132"]
[BlackElo "2070"]
[Annotator "ChessBase"]
[PlyCount "103"]
[EventDate "2022.07.09"]
[EventType "swiss"]
[EventCountry "AUT"]
[SourceTitle "playchess.com"]
[Source "ChessBase"]
[SourceQuality "1"]
[TimeControl "40/5400+30:1800+30"]

1. e4 {[%emt 0:01:45]} e5 {[%emt 0:00:02]} 2. Bc4 {[%emt 0:01:05]} Nf6 {[%emt 0:00:27]} 3. d4 {[%emt 0:00:09]} exd4 {[%emt 0:00:29]} 4. Nf3 {[%emt 0:00:07]} Nc6 {[%emt 0:00:53]} 5. e5 {[%emt 0:00:14]} d5 {[%emt 0:00:43]} 6. Bb5 {[%emt 0:00:06]} Ne4 {[%emt 0:00:31]} 7. Nxd4 {[%emt 0:00:06]} Bd7 {[%emt 0:00:58]} 8. Bxc6 {[%emt 0:00:54]} bxc6 {[%emt 0:00:31]} 9. Be3 {[%emt 0:04:00]} Be7 {[%emt 0:16:02]} 10. O-O {[%emt 0:04:30]} c5 {[%emt 0:06:20]} 11. Nb3 {[%emt 0:05:32]} d4 {[%emt 0:01:37]} 12. Bc1 {[%emt 0:09:55]} O-O {[%emt 0:08:01]} 13. Qe2 {[%emt 0:17:59]} Bc6 {[%emt 0:02:48]} 14. Na5 {[%emt 0:14:55]} Bd5 {[%emt 0:01:01]} 15. f3 {[%emt 0:02:59]} Ng5 {[%emt 0:02:31]} 16. c4 {[%emt 0:02:00]} dxc3 {[%emt 0:00:12]} 17. Nxc3 {[%emt 0:00:20]} c6 {[%emt 0:00:11]} 18. Nxd5 {[%emt 0:06:42]} cxd5 {[%emt 0:12:15]} 19. Nc6 {[%emt 0:00:26]} Qd7 {[%emt 0:00:23]} 20. Nxe7+ {[%emt 0:00:06]} Qxe7 {[%emt 0:00:04]} 21. Qd2 {[%emt 0:00:06]} Ne6 {[%emt 0:00:29]} 22. Qxd5 {[%emt 0:00:05]} Rfd8 {[%emt 0:00:27]} 23. Qe4 {[%emt 0:05:26]} Rab8 {[%emt 0:00:05]} 24. Rb1 {[%emt 0:02:17]} Qd7 {[%emt 0:03:43]} 25. Be3 {[%emt 0:02:53]} Qd3 {[%emt 0:00:49]} 26. Qxd3 {[%emt 0:00:34]} Rxd3 {[%emt 0:00:01]} 27. Kf2 {[%emt 0:00:18]} a5 {[%emt 0:00:38]} 28. b3 {[%emt 0:01:39]} g5 {[%emt 0:01:46]} 29. Rfd1 {[%emt 0:01:04]} Rxd1 {[%emt 0:00:54]} 30. Rxd1 {[%emt 0:00:01]} a4 {[%emt 0:00:15]} 31. Rd3 {[%emt 0:01:51]} axb3 {[%emt 0:00:30]} 32. axb3 {[%emt 0:00:26]} Kg7 {[%emt 0:00:26]} 33. Rc3 {[%emt 0:04:36]} Kg6 {[%emt 0:02:56]} 34. g4 {[%emt 0:01:01]} h5 {[%emt 0:02:08]} 35. h3 {[%emt 0:01:08]} hxg4 {[%emt 0:00:08]} 36. hxg4 {[%emt 0:00:05]} f6 {[%emt 0:01:57]} 37. Bxc5 {[%emt 0:04:22]} Nxc5 {[%emt 0:05:02]} 38. Rxc5 {[%emt 0:00:06]} fxe5 {[%emt 0:00:03]} 39. Rc3 {[%emt 0:00:30]} Kf6 {[%emt 0:00:09]} 40. Ke3 {[%emt 0:03:45]} Ke6 {[%emt 0:00:26]} 41. Kd3 {[%emt 0:33:55]} Rb4 {[%emt 0:31:41]} 42. Kc2 {[%emt 0:00:00]} e4 {[%emt 0:00:00]} 43. Re3 {[%emt 0:00:00]} Ke5 {[%emt 0:00:00]} 44. Rxe4+ {[%emt 0:00:00]} Rxe4 {[%emt 0:00:00]} 45. fxe4 {[%emt 0:00:00]} Kxe4 {[%emt 0:00:00]} 46. Kc3 {[%emt 0:00:00]} Kf4 {[%emt 0:00:00]} 47. b4 {[%emt 0:00:00]} Kxg4 {[%emt 0:00:00]} 48. b5 {[%emt 0:00:00]} Kf3 {[%emt 0:00:00]} 49. b6 {[%emt 0:00:00]} g4 {[%emt 0:00:00]} 50. b7 {[%emt 0:00:00]} g3 {[%emt 0:00:00]} 51. b8=Q {[%emt 0:00:00]} g2 {[%emt 0:00:00]} 52. Qb6 {[%emt 0:00:00]} 1-0

[Event "41st Jacques-Lemans-Open 2022"]
[Site "St. Veit/Glan"]
[Date "2022.07.15"]
[Round "8.13"]
[White "Hofstadler, Mario"]
[Black "Lerch, Johannes"]
[Result "0-1"]
[ECO "E04"]
[WhiteElo "2123"]
[BlackElo "2222"]
[Annotator "ChessBase"]
[PlyCount "38"]
[EventDate "2022.07.09"]
[EventType "swiss"]
[EventCountry "AUT"]
[SourceTitle "playchess.com"]
[Source "ChessBase"]
[SourceQuality "1"]
[TimeControl "40/5400+30:1800+30"]

1. d4 {[%emt 0:00:10]} Nf6 {[%emt 0:00:04]} 2. c4 {[%emt 0:01:02]} e6 {[%emt 0:00:08]} 3. g3 {[%emt 0:00:28]} d5 {[%emt 0:00:48]} 4. Nf3 {[%emt 0:02:02]} dxc4 {[%emt 0:00:24]} 5. Bg2 {[%emt 0:00:17]} a6 {[%emt 0:01:12]} 6. O-O {[%emt 0:03:30]} Nc6 {[%emt 0:00:16]} 7. a4 {[%emt 0:05:27]} Rb8 {[%emt 0:00:13]} 8. Re1 {[%emt 0:06:02]} Be7 {[%emt 0:07:42]} 9. e4 {[%emt 0:08:41]} O-O {[%emt 0:01:14]} 10. h4 {[%emt 0:20:12]} b5 {[%emt 0:04:19]} 11. axb5 {[%emt 0:02:42]} axb5 {[%emt 0:01:32]} 12. e5 {[%emt 0:01:45]} Nd5 {[%emt 0:03:43]} 13. Ng5 {[%emt 0:02:45]} h6 {[%emt 0:14:02]} 14. Nh3 {[%emt 0:15:48]} f5 {[%emt 0:06:13]} 15. Nc3 {[%emt 0:00:45]} Ncb4 {[%emt 0:03:21]} 16. Bxd5 {[%emt 0:07:31]} Nxd5 {[%emt 0:01:03]} 17. Nf4 {[%emt 0:00:34]} Nxf4 {[%emt 0:01:27]} 18. Bxf4 {[%emt 0:01:05]} b4 {[%emt 0:01:20]} 19. Na4 {[%emt 0:01:05]} Qd5 {[%emt 0:01:42]} 0-1

[Event "41st Jacques-Lemans-Open 2022"]
[Site "St. Veit/Glan"]
[Date "2022.07.15"]
[Round "8.14"]
[White "Ofner, Maximilian"]
[Black "Hinteregger, Arthur"]
[Result "1-0"]
[ECO "C02"]
[WhiteElo "2194"]
[BlackElo "1993"]
[Annotator "ChessBase"]
[PlyCount "95"]
[EventDate "2022.07.09"]
[EventType "swiss"]
[EventCountry "AUT"]
[SourceTitle "playchess.com"]
[Source "ChessBase"]
[SourceQuality "1"]
[TimeControl "40/5400+30:1800+30"]

1. e4 {[%emt 0:00:07]} e6 {[%emt 0:00:07]} 2. d4 {[%emt 0:00:06]} d5 {[%emt 0:00:06]} 3. e5 {[%emt 0:00:19]} c5 {[%emt 0:00:07]} 4. c3 {[%emt 0:00:06]} Nc6 {[%emt 0:00:08]} 5. Nf3 {[%emt 0:00:06]} Qb6 {[%emt 0:00:07]} 6. a3 {[%emt 0:00:08]} c4 {[%emt 0:00:15]} 7. Nbd2 {[%emt 0:00:10]} Na5 {[%emt 0:00:10]} 8. Be2 {[%emt 0:00:21]} Bd7 {[%emt 0:00:49]} 9. O-O {[%emt 0:00:08]} Ne7 {[%emt 0:01:04]} 10. Re1 {[%emt 0:00:14]} h6 {[%emt 0:00:40]} 11. h4 {[%emt 0:00:48]} Qc7 {[%emt 0:00:25]} 12. Rb1 {[%emt 0:02:19]} Nc8 {[%emt 0:02:20]} 13. Nf1 {[%emt 0:03:00]} Nb6 {[%emt 0:00:11]} 14. Bf4 {[%emt 0:00:26]} Ba4 {[%emt 0:01:47]} 15. Qd2 {[%emt 0:00:09]} Nb3 {[%emt 0:06:36]} 16. Qe3 {[%emt 0:00:11]} Na5 {[%emt 0:00:18]} 17. Bd1 {[%emt 0:04:42]} Bb3 {[%emt 0:06:37]} 18. N3d2 {[%emt 0:05:13]} Bxd1 {[%emt 0:03:07]} 19. Rexd1 {[%emt 0:07:09]} O-O-O {[%emt 0:03:04]} 20. Bh2 {[%emt 0:09:52]} Be7 {[%emt 0:05:23]} 21. h5 {[%emt 0:05:19]} Rdg8 {[%emt 0:02:57]} 22. f4 {[%emt 0:02:09]} g6 {[%emt 0:03:51]} 23. hxg6 {[%emt 0:03:10]} fxg6 {[%emt 0:00:10]} 24. Qh3 {[%emt 0:01:40]} Qd7 {[%emt 0:00:14]} 25. Ne3 {[%emt 0:00:53]} Bd8 {[%emt 0:15:37]} 26. b3 {[%emt 0:10:34]} Be7 {[%emt 0:01:43]} 27. bxc4 {[%emt 0:03:52]} Naxc4 {[%emt 0:03:22]} 28. Ndxc4 {[%emt 0:03:46]} Nxc4 {[%emt 0:01:30]} 29. Nxc4 {[%emt 0:05:27]} dxc4 {[%emt 0:00:07]} 30. d5 {[%emt 0:03:40]} exd5 {[%emt 0:02:47]} 31. Qxd7+ {[%emt 0:08:30]} Kxd7 {[%emt 0:00:08]} 32. Rxb7+ {[%emt 0:00:11]} Ke6 {[%emt 0:00:07]} 33. a4 {[%emt 0:02:03]} Rb8 {[%emt 0:01:39]} 34. Rdb1 {[%emt 0:01:21]} Rxb7 {[%emt 0:00:43]} 35. Rxb7 {[%emt 0:00:05]} Rd8 {[%emt 0:00:18]} 36. g4 {[%emt 0:02:41]} Bc5+ {[%emt 0:00:53]} 37. Kg2 {[%emt 0:01:47]} h5 {[%emt 0:01:01]} 38. Rc7 {[%emt 0:03:14]} Bb6 {[%emt 0:04:50]} 39. Rc6+ {[%emt 0:00:27]} Kf7 {[%emt 0:00:49]} 40. gxh5 {[%emt 0:06:20]} gxh5 {[%emt 0:00:17]} 41. f5 {[%emt 0:11:28]} d4 {[%emt 0:01:45]} 42. cxd4 {[%emt 0:02:17]} Rxd4 {[%emt 0:00:16]} 43. Kf3 {[%emt 0:05:40]} Ke7 {[%emt 0:01:19]} 44. Bf4 {[%emt 0:02:18]} Kd7 {[%emt 0:00:42]} 45. Rh6 {[%emt 0:00:49]} c3 {[%emt 0:00:20]} 46. e6+ {[%emt 0:00:33]} Kc6 {[%emt 0:00:47]} 47. e7+ {[%emt 0:02:27]} Kd7 {[%emt 0:00:06]} 48. Re6 {[%emt 0:00:08]} 1-0

[Event "41st Jacques-Lemans-Open 2022"]
[Site "St. Veit/Glan"]
[Date "2022.07.15"]
[Round "8.15"]
[White "Raeke, Philipp"]
[Black "Miazhynski, Yuri"]
[Result "1/2-1/2"]
[ECO "A44"]
[WhiteElo "1908"]
[BlackElo "2166"]
[Annotator "ChessBase"]
[PlyCount "29"]
[EventDate "2022.07.09"]
[EventType "swiss"]
[EventCountry "AUT"]
[SourceTitle "playchess.com"]
[Source "ChessBase"]
[SourceQuality "1"]
[TimeControl "40/5400+30:1800+30"]

1. d4 {[%emt 0:00:07]} c5 {[%emt 0:01:37]} 2. d5 {[%emt 0:00:37]} e5 {[%emt 0:01:21]} 3. Nc3 {[%emt 0:07:14]} d6 {[%emt 0:00:29]} 4. e4 {[%emt 0:01:30]} Be7 {[%emt 0:04:09]} 5. Nf3 {[%emt 0:05:09]} Nf6 {[%emt 0:02:09]} 6. Be2 {[%emt 0:01:49]} Na6 {[%emt 0:01:03]} 7. O-O {[%emt 0:03:14]} Nc7 {[%emt 0:03:33]} 8. Nd2 {[%emt 0:03:20]} Rb8 {[%emt 0:03:42]} 9. a4 {[%emt 0:01:42]} b6 {[%emt 0:00:52]} 10. Nc4 {[%emt 0:05:38]} Ba6 {[%emt 0:08:48]} 11. f4 {[%emt 0:03:57]} Bxc4 {[%emt 0:05:33]} 12. Bxc4 {[%emt 0:00:24]} exf4 {[%emt 0:04:49]} 13. Bxf4 {[%emt 0:01:17]} O-O {[%emt 0:00:43]} 14. Qe2 {[%emt 0:12:19]} Nce8 {[%emt 0:07:19]} 15. h3 {[%emt 0:16:50]} 1/2-1/2

[Event "41st Jacques-Lemans-Open 2022"]
[Site "St. Veit/Glan"]
[Date "2022.07.15"]
[Round "8.16"]
[White "Ebner, Johann"]
[Black "Kruckenhauser, Arthur"]
[Result "0-1"]
[ECO "D31"]
[WhiteElo "1907"]
[BlackElo "2303"]
[Annotator "ChessBase"]
[PlyCount "94"]
[EventDate "2022.07.09"]
[EventType "swiss"]
[EventCountry "AUT"]
[SourceTitle "playchess.com"]
[Source "ChessBase"]
[SourceQuality "1"]
[TimeControl "40/5400+30:1800+30"]

1. d4 {[%emt 0:07:45]} d5 {[%emt 0:00:16]} 2. c4 {[%emt 0:00:07]} e6 {[%emt 0:00:07]} 3. Nc3 {[%emt 0:00:07]} c6 {[%emt 0:00:06]} 4. cxd5 {[%emt 0:00:26]} exd5 {[%emt 0:00:10]} 5. Nf3 {[%emt 0:00:23]} Bf5 {[%emt 0:00:23]} 6. Bf4 {[%emt 0:00:53]} Qb6 {[%emt 0:01:12]} 7. Na4 {[%emt 0:10:15]} Qa5+ {[%emt 0:04:44]} 8. Bd2 {[%emt 0:00:42]} Qc7 {[%emt 0:00:10]} 9. g3 {[%emt 0:06:06]} Nf6 {[%emt 0:01:37]} 10. Bg2 {[%emt 0:05:36]} Bd6 {[%emt 0:04:03]} 11. O-O {[%emt 0:00:45]} O-O {[%emt 0:00:28]} 12. Qc1 {[%emt 0:01:34]} Re8 {[%emt 0:01:54]} 13. Re1 {[%emt 0:03:42]} Nbd7 {[%emt 0:13:29]} 14. Bf4 {[%emt 0:04:24]} Bg6 {[%emt 0:05:20]} 15. Nc3 {[%emt 0:01:44]} Bxf4 {[%emt 0:02:39]} 16. gxf4 {[%emt 0:01:02]} Qd6 {[%emt 0:04:01]} 17. Ne5 {[%emt 0:02:41]} Bf5 {[%emt 0:00:16]} 18. e3 {[%emt 0:07:35]} h6 {[%emt 0:01:15]} 19. a3 {[%emt 0:03:43]} a5 {[%emt 0:03:55]} 20. Qd1 {[%emt 0:02:31]} Ra7 {[%emt 0:09:58]} 21. Rc1 {[%emt 0:12:47]} Qe6 {[%emt 0:03:24]} 22. Na4 {[%emt 0:01:26]} Ne4 {[%emt 0:06:49]} 23. Nxd7 {[%emt 0:01:04]} Qxd7 {[%emt 0:00:22]} 24. Nc5 {[%emt 0:00:22]} Nxc5 {[%emt 0:02:47]} 25. Rxc5 {[%emt 0:00:08]} Re6 {[%emt 0:00:26]} 26. Kh1 {[%emt 0:01:20]} Rg6 {[%emt 0:04:46]} 27. Bf3 {[%emt 0:00:28]} Qd8 {[%emt 0:03:22]} 28. Rg1 {[%emt 0:04:29]} Qh4 {[%emt 0:01:08]} 29. Rxg6 {[%emt 0:01:38]} Bxg6 {[%emt 0:00:50]} 30. Qe1 {[%emt 0:06:50]} Bf5 {[%emt 0:08:34]} 31. Kg1 {[%emt 0:03:50]} Qd8 {[%emt 0:00:38]} 32. Qc1 {[%emt 0:00:28]} g6 {[%emt 0:04:22]} 33. Kh1 {[%emt 0:00:49]} Kg7 {[%emt 0:00:34]} 34. Qc3 {[%emt 0:00:58]} h5 {[%emt 0:01:10]} 35. e4 {[%emt 0:01:44]} Bxe4 {[%emt 0:08:25]} 36. Bxe4 {[%emt 0:00:12]} dxe4 {[%emt 0:00:03]} 37. d5+ {[%emt 0:00:34]} Qf6 {[%emt 0:00:15]} 38. dxc6 {[%emt 0:00:44]} bxc6 {[%emt 0:00:21]} 39. Re5 {[%emt 0:01:14]} Rb7 {[%emt 0:03:00]} 40. Kg2 {[%emt 0:03:04]} Rb5 {[%emt 0:02:36]} 41. a4 {[%emt 0:07:11]} Rd5 {[%emt 0:10:40]} 42. Rxe4 {[%emt 0:07:39]} Qxc3 {[%emt 0:01:34]} 43. bxc3 {[%emt 0:00:02]} Kf6 {[%emt 0:12:01]} 44. Rc4 {[%emt 0:04:32]} c5 {[%emt 0:00:21]} 45. Kg3 {[%emt 0:03:26]} Ke6 {[%emt 0:00:25]} 46. f3 {[%emt 0:01:16]} f5 {[%emt 0:00:16]} 47. Kh4 {[%emt 0:04:04]} Kd6 {[%emt 0:01:46]} 0-1

[Event "41st Jacques-Lemans-Open 2022"]
[Site "St. Veit/Glan"]
[Date "2022.07.15"]
[Round "8.17"]
[White "Wendl, Philipp"]
[Black "Bauer, Sebastian"]
[Result "1-0"]
[ECO "C54"]
[WhiteElo "2097"]
[BlackElo "2380"]
[Annotator "ChessBase"]
[PlyCount "93"]
[EventDate "2022.07.09"]
[EventType "swiss"]
[EventCountry "AUT"]
[SourceTitle "playchess.com"]
[Source "ChessBase"]
[SourceQuality "1"]
[TimeControl "40/5400+30:1800+30"]

1. e4 {[%emt 0:00:02]} e5 {[%emt 0:01:11]} 2. Nf3 {[%emt 0:00:06]} Nc6 {[%emt 0:00:05]} 3. Bc4 {[%emt 0:00:03]} Bc5 {[%emt 0:00:09]} 4. c3 {[%emt 0:00:04]} Nf6 {[%emt 0:00:07]} 5. d4 {[%emt 0:00:04]} exd4 {[%emt 0:00:09]} 6. cxd4 {[%emt 0:00:03]} Bb4+ {[%emt 0:00:11]} 7. Nc3 {[%emt 0:00:10]} Nxe4 {[%emt 0:02:38]} 8. O-O {[%emt 0:02:53]} Bxc3 {[%emt 0:00:38]} 9. d5 {[%emt 0:00:04]} Bf6 {[%emt 0:00:30]} 10. Re1 {[%emt 0:00:10]} Ne7 {[%emt 0:00:10]} 11. Rxe4 {[%emt 0:00:05]} d6 {[%emt 0:00:06]} 12. Rf4 {[%emt 0:00:03]} O-O {[%emt 0:15:53]} 13. Rxf6 {[%emt 0:01:13]} gxf6 {[%emt 0:00:10]} 14. Qd4 {[%emt 0:00:04]} Ng6 {[%emt 0:17:56]} 15. Bh6 {[%emt 0:01:10]} Bd7 {[%emt 0:08:15]} 16. Bxf8 {[%emt 0:36:13]} Qxf8 {[%emt 0:01:39]} 17. Qxf6 {[%emt 0:03:12]} Re8 {[%emt 0:02:17]} 18. Rc1 {[%emt 0:07:14]} Qh6 {[%emt 0:04:18]} 19. Ng5 {[%emt 0:01:52]} Qg7 {[%emt 0:00:14]} 20. Qxg7+ {[%emt 0:03:45]} Kxg7 {[%emt 0:00:07]} 21. Bf1 {[%emt 0:02:36]} c5 {[%emt 0:06:32]} 22. dxc6 {[%emt 0:00:15]} Bxc6 {[%emt 0:00:45]} 23. Nh3 {[%emt 0:06:11]} f5 {[%emt 0:05:25]} 24. f3 {[%emt 0:01:21]} Kf6 {[%emt 0:00:45]} 25. Rd1 {[%emt 0:01:10]} d5 {[%emt 0:00:54]} 26. Nf2 {[%emt 0:00:51]} Ne5 {[%emt 0:09:31]} 27. b3 {[%emt 0:06:55]} Rg8 {[%emt 0:01:47]} 28. Be2 {[%emt 0:02:32]} Ng6 {[%emt 0:01:38]} 29. Nd3 {[%emt 0:02:36]} Bb5 {[%emt 0:00:53]} 30. Kf2 {[%emt 0:01:59]} Bxd3 {[%emt 0:03:30]} 31. Bxd3 {[%emt 0:00:58]} Rc8 {[%emt 0:01:39]} 32. Bb1 {[%emt 0:02:10]} Rd8 {[%emt 0:02:11]} 33. g3 {[%emt 0:01:22]} Ne5 {[%emt 0:00:41]} 34. Rd4 {[%emt 0:01:08]} Nf7 {[%emt 0:04:32]} 35. Rf4 {[%emt 0:01:16]} Nd6 {[%emt 0:03:38]} 36. Bxf5 {[%emt 0:00:37]} Nxf5 {[%emt 0:01:01]} 37. g4 {[%emt 0:00:05]} Ke6 {[%emt 0:01:32]} 38. Rxf5 {[%emt 0:00:52]} Rc8 {[%emt 0:00:07]} 39. Rh5 {[%emt 0:00:27]} d4 {[%emt 0:00:54]} 40. Ke2 {[%emt 0:01:24]} Rc2+ {[%emt 0:02:49]} 41. Kd3 {[%emt 0:30:10]} Rxa2 {[%emt 0:30:32]} 42. Rxh7 {[%emt 0:08:35]} b5 {[%emt 0:01:00]} 43. Kxd4 {[%emt 0:01:07]} a5 {[%emt 0:00:18]} 44. Rb7 {[%emt 0:02:10]} b4 {[%emt 0:00:15]} 45. Rb6+ {[%emt 0:04:18]} Kf7 {[%emt 0:00:35]} 46. Ra6 {[%emt 0:00:00]} Rxh2 {[%emt 0:00:00]} 47. Rxa5 {[%emt 0:00:00]} 1-0

[Event "41st Jacques-Lemans-Open 2022"]
[Site "St. Veit/Glan"]
[Date "2022.07.15"]
[Round "8.18"]
[White "Novosel, Lovro"]
[Black "Holzmann, Herbert"]
[Result "1-0"]
[ECO "A50"]
[WhiteElo "2255"]
[BlackElo "1979"]
[Annotator "ChessBase"]
[PlyCount "67"]
[EventDate "2022.07.09"]
[EventType "swiss"]
[EventCountry "AUT"]
[SourceTitle "playchess.com"]
[Source "ChessBase"]
[SourceQuality "1"]
[TimeControl "40/5400+30:1800+30"]

1. d4 {[%emt 0:00:06]} Nf6 {[%emt 0:00:09]} 2. c4 {[%emt 0:00:25]} c6 {[%emt 0:00:18]} 3. Nf3 {[%emt 0:00:23]} d6 {[%emt 0:00:13]} 4. g3 {[%emt 0:00:21]} Nbd7 {[%emt 0:00:42]} 5. Nc3 {[%emt 0:00:43]} Qb6 {[%emt 0:02:03]} 6. Bg2 {[%emt 0:05:07]} g6 {[%emt 0:03:15]} 7. O-O {[%emt 0:01:38]} Bg7 {[%emt 0:00:06]} 8. e4 {[%emt 0:01:15]} O-O {[%emt 0:00:49]} 9. h3 {[%emt 0:02:23]} e5 {[%emt 0:09:02]} 10. c5 {[%emt 0:00:58]} dxc5 {[%emt 0:02:07]} 11. dxe5 {[%emt 0:00:09]} Ne8 {[%emt 0:00:19]} 12. e6 {[%emt 0:00:31]} fxe6 {[%emt 0:01:36]} 13. Ng5 {[%emt 0:00:13]} Ne5 {[%emt 0:01:51]} 14. f4 {[%emt 0:00:07]} c4+ {[%emt 0:00:09]} 15. Kh2 {[%emt 0:00:53]} Nd3 {[%emt 0:00:16]} 16. e5 {[%emt 0:02:36]} Nxb2 {[%emt 0:04:18]} 17. Qe2 {[%emt 0:17:43]} Nd3 {[%emt 0:00:18]} 18. Be3 {[%emt 0:07:41]} Qa5 {[%emt 0:05:37]} 19. Nce4 {[%emt 0:01:15]} b6 {[%emt 0:00:24]} 20. h4 {[%emt 0:01:01]} Bd7 {[%emt 0:01:16]} 21. h5 {[%emt 0:07:03]} Bh6 {[%emt 0:17:57]} 22. hxg6 {[%emt 0:00:45]} hxg6 {[%emt 0:00:30]} 23. Qg4 {[%emt 0:00:55]} Bxg5 {[%emt 0:04:18]} 24. Nxg5 {[%emt 0:00:22]} Kg7 {[%emt 0:03:12]} 25. Nxe6+ {[%emt 0:01:36]} Bxe6 {[%emt 0:00:51]} 26. Qxe6 {[%emt 0:00:07]} Nc7 {[%emt 0:05:40]} 27. Qxc6 {[%emt 0:01:12]} Rf7 {[%emt 0:01:10]} 28. Be4 {[%emt 0:01:40]} Rh8+ {[%emt 0:01:42]} 29. Kg2 {[%emt 0:01:19]} Qc3 {[%emt 0:01:45]} 30. Qxg6+ {[%emt 0:04:20]} Kf8 {[%emt 0:00:09]} 31. Rad1 {[%emt 0:02:07]} Rg8 {[%emt 0:05:09]} 32. Qd6+ {[%emt 0:04:04]} Kg7 {[%emt 0:01:05]} 33. Bxd3 {[%emt 0:02:49]} cxd3 {[%emt 0:00:16]} 34. f5 {[%emt 0:00:37]} 1-0

[Event "41st Jacques-Lemans-Open 2022"]
[Site "St. Veit/Glan"]
[Date "2022.07.15"]
[Round "8.19"]
[White "Wallner, Dieter"]
[Black "Moeller, Dustin"]
[Result "0-1"]
[ECO "D00"]
[WhiteElo "2018"]
[BlackElo "2237"]
[Annotator "ChessBase"]
[PlyCount "120"]
[EventDate "2022.07.09"]
[EventType "swiss"]
[EventCountry "AUT"]
[SourceTitle "playchess.com"]
[Source "ChessBase"]
[SourceQuality "1"]
[TimeControl "40/5400+30:1800+30"]

1. d4 {[%emt 0:00:03]} d5 {[%emt 0:00:35]} 2. Nc3 {[%emt 0:00:12]} Nf6 {[%emt 0:00:11]} 3. Bf4 {[%emt 0:00:14]} c5 {[%emt 0:00:08]} 4. e3 {[%emt 0:00:28]} cxd4 {[%emt 0:00:07]} 5. exd4 {[%emt 0:00:05]} a6 {[%emt 0:00:08]} 6. Nf3 {[%emt 0:00:56]} Nc6 {[%emt 0:00:08]} 7. Ne5 {[%emt 0:00:11]} Bd7 {[%emt 0:00:06]} 8. g4 {[%emt 0:10:35]} h6 {[%emt 0:00:08]} 9. Bg2 {[%emt 0:04:35]} e6 {[%emt 0:00:29]} 10. h4 {[%emt 0:09:20]} Qb6 {[%emt 0:00:24]} 11. g5 {[%emt 0:04:25]} hxg5 {[%emt 0:09:36]} 12. hxg5 {[%emt 0:00:04]} Rxh1+ {[%emt 0:00:05]} 13. Bxh1 {[%emt 0:00:01]} Qxb2 {[%emt 0:00:31]} 14. Bd2 {[%emt 0:06:52]} Nxe5 {[%emt 0:10:13]} 15. gxf6 {[%emt 0:03:03]} Nc6 {[%emt 0:03:37]} 16. Rb1 {[%emt 0:01:25]} Qa3 {[%emt 0:00:07]} 17. fxg7 {[%emt 0:06:00]} Bxg7 {[%emt 0:00:08]} 18. Rxb7 {[%emt 0:02:24]} Bxd4 {[%emt 0:14:56]} 19. Rb3 {[%emt 0:06:44]} Qd6 {[%emt 0:02:41]} 20. Qg4 {[%emt 0:05:18]} O-O-O {[%emt 0:05:33]} 21. Qe2 {[%emt 0:09:58]} Nb8 {[%emt 0:16:58]} 22. Qd3 {[%emt 0:02:23]} Qe5+ {[%emt 0:02:58]} 23. Ne2 {[%emt 0:00:26]} Qh2 {[%emt 0:11:43]} 24. Rxb8+ {[%emt 0:02:34]} Qxb8 {[%emt 0:00:25]} 25. Qxa6+ {[%emt 0:05:16]} Qb7 {[%emt 0:00:04]} 26. Qxb7+ {[%emt 0:00:23]} Kxb7 {[%emt 0:00:06]} 27. Nxd4 {[%emt 0:00:07]} Kb6 {[%emt 0:02:53]} 28. a3 {[%emt 0:02:03]} Ba4 {[%emt 0:02:54]} 29. f4 {[%emt 0:04:29]} Rc8 {[%emt 0:02:26]} 30. c3 {[%emt 0:01:26]} Bd7 {[%emt 0:01:51]} 31. Bf3 {[%emt 0:05:11]} Ra8 {[%emt 0:01:44]} 32. Bc1 {[%emt 0:05:52]} Bc8 {[%emt 0:00:05]} 33. Kf2 {[%emt 0:00:30]} Ba6 {[%emt 0:00:05]} 34. Be3 {[%emt 0:00:53]} Ka5 {[%emt 0:01:13]} 35. Nc6+ {[%emt 0:01:46]} Kb5 {[%emt 0:02:37]} 36. Nb4 {[%emt 0:00:43]} Bb7 {[%emt 0:00:11]} 37. Be2+ {[%emt 0:00:18]} Ka4 {[%emt 0:00:55]} 38. Bc1 {[%emt 0:00:43]} Kb3 {[%emt 0:01:04]} 39. Nd3 {[%emt 0:00:28]} Kxc3 {[%emt 0:01:39]} 40. Ke3 {[%emt 0:00:42]} d4+ {[%emt 0:05:40]} 41. Kf2 {[%emt 0:30:02]} Ba6 {[%emt 0:32:32]} 42. Bb2+ {[%emt 0:00:00]} Kc2 {[%emt 0:00:00]} 43. Nb4+ {[%emt 0:00:00]} Kxb2 {[%emt 0:00:00]} 44. Nxa6 {[%emt 0:00:00]} Kc3 {[%emt 0:00:00]} 45. Nc5 {[%emt 0:00:00]} Rxa3 {[%emt 0:00:00]} 46. Bh5 {[%emt 0:00:00]} Ra5 {[%emt 0:00:00]} 47. Ne4+ {[%emt 0:00:00]} Kd3 {[%emt 0:00:00]} 48. Bf3 {[%emt 0:00:00]} Ra2+ {[%emt 0:00:00]} 49. Kg3 {[%emt 0:00:00]} Ke3 {[%emt 0:00:00]} 50. Ng5 {[%emt 0:00:00]} Rf2 {[%emt 0:00:00]} 51. Bh5 {[%emt 0:00:00]} Rxf4 {[%emt 0:00:00]} 52. Nxf7 {[%emt 0:00:00]} Rf5 {[%emt 0:00:00]} 53. Bg6 {[%emt 0:00:00]} Rd5 {[%emt 0:00:00]} 54. Kg4 {[%emt 0:00:00]} d3 {[%emt 0:00:00]} 55. Ng5 {[%emt 0:00:00]} d2 {[%emt 0:00:00]} 56. Bc2 {[%emt 0:00:00]} e5 {[%emt 0:00:00]} 57. Kf5 {[%emt 0:00:00]} e4+ {[%emt 0:00:00]} 58. Kf6 {[%emt 0:00:00]} d1=Q {[%emt 0:00:00]} 59. Bxd1 {[%emt 0:00:00]} Rxd1 {[%emt 0:00:00]} 60. Ke5 {[%emt 0:00:00]} Rd8 {[%emt 0:00:00]} 0-1